[Event "GER-ch Youth U12 2019"]
[Site "Willingen"]
[Date "2019.06.10"]
[Round "3.3"]
[White "Kluehs, Gustaf"]
[Black "Heinrich, John"]
[Result "1-0"]
[ECO "A05"]
[WhiteElo "1705"]
[BlackElo "1695"]
[Annotator "NA"]
[PlyCount "37"]
[EventDate "2019.06.07"]
[EventType "swiss"]
[EventRounds "9"]
[EventCountry "GER"]
[SourceTitle "playchess.com"]
[Source "ChessBase"]
[SourceQuality "1"]
[TimeControl "40/4500+30:900+30"]

1. Nf3 {[%emt 0:00:00]} Nf6 {[%emt 0:00:00]} 2. g3 {[%emt 0:00:00]} d5 {[%emt 0:00:00]} 3. Bg2 {[%emt 0:00:00]} e6 {[%emt 0:00:00]} 4. d3 {[%emt 0:00:00]} Bd6 {[%emt 0:00:00]} 5. c4 {[%emt 0:00:00]} c6 {[%emt 0:00:00]} 6. cxd5 {[%emt 0:00:00]} exd5 {[%emt 0:00:00]} 7. O-O {[%emt 0:00:00]} O-O {[%emt 0:00:00]} 8. Nc3 {[%emt 0:00:00]} Bg4 {[%emt 0:02:29]} 9. Qb3 {[%emt 0:00:00]} Qc7 {[%emt 0:02:25]} 10. e4 {[%emt 0:00:00]} dxe4 {[%emt 0:06:34]} 11. dxe4 {[%emt 0:00:00]} Nbd7 {[%emt 0:05:55]} 12. Qc2 {[%emt 0:03:21]} Bh5 {[%emt 0:06:25]} 13. Nh4 {[%emt 0:02:10]} Ne8 {[%emt 0:04:32]} 14. Be3 {[%emt 0:02:37]} f6 {[%emt 0:04:44]} 15. Rac1 {[%emt 0:02:28]} Rc8 {[%emt 0:01:23]} 16. Nf5 {[%emt 0:13:54]} Nb6 {[%emt 0:04:44]} 17. Ne2 {[%emt 0:06:26]} Bf7 {[%emt 0:04:49]} 18. b3 {[%emt 0:05:40]} Rd8 {[%emt 0:10:32]} 19. Ned4 {[%emt 0:03:48] normal} 1-0

[Event "GER-ch Youth U12 2019"]
[Site "Willingen"]
[Date "2019.06.10"]
[Round "3.4"]
[White "Ohler, Julius"]
[Black "Stork, Christopher"]
[Result "1/2-1/2"]
[ECO "A34"]
[WhiteElo "1837"]
[BlackElo "1817"]
[Annotator "NA"]
[PlyCount "36"]
[EventDate "2019.06.07"]
[EventType "swiss"]
[EventRounds "9"]
[EventCountry "GER"]
[SourceTitle "playchess.com"]
[Source "ChessBase"]
[SourceQuality "1"]
[TimeControl "40/4500+30:900+30"]

1. c4 {[%emt 0:00:00]} Nf6 {[%emt 0:00:00]} 2. Nc3 {[%emt 0:00:00]} c5 {[%emt 0:00:00]} 3. g3 {[%emt 0:00:00]} d6 {[%emt 0:00:00]} 4. Bg2 {[%emt 0:00:00]} g6 {[%emt 0:00:00]} 5. a3 {[%emt 0:00:00]} Nc6 {[%emt 0:00:00]} 6. Rb1 {[%emt 0:00:00]} a5 {[%emt 0:00:00]} 7. Nf3 {[%emt 0:00:00]} Bg7 {[%emt 0:00:00]} 8. O-O {[%emt 0:00:00]} O-O {[%emt 0:00:00]} 9. Ne1 {[%emt 0:00:00]} Bd7 {[%emt 0:00:00]} 10. Nc2 {[%emt 0:00:00]} Rb8 {[%emt 0:00:00]} 11. d3 {[%emt 0:00:00]} Ne8 {[%emt 0:04:55]} 12. Bd2 {[%emt 0:00:00]} Nc7 {[%emt 0:01:20]} 13. b4 {[%emt 0:00:00]} axb4 {[%emt 0:02:23]} 14. axb4 {[%emt 0:00:00]} cxb4 {[%emt 0:00:27]} 15. Nxb4 {[%emt 0:00:00]} Nxb4 {[%emt 0:00:29]} 16. Rxb4 {[%emt 0:00:00]} Bc6 {[%emt 0:01:43]} 17. Qc2 {[%emt 0:10:24]} Ne6 {[%emt 0:03:02]} 18. e3 {[%emt 0:08:09]} Nc7 {[%emt 0:05:18] normal} 1/2-1/2

[Event "GER-ch Youth U12 2019"]
[Site "Willingen"]
[Date "2019.06.10"]
[Round "3.5"]
[White "Bungarten, Jona"]
[Black "Fuchs, Florian"]
[Result "1-0"]
[ECO "C05"]
[WhiteElo "1642"]
[BlackElo "2235"]
[Annotator "NA"]
[PlyCount "39"]
[EventDate "2019.06.07"]
[EventType "swiss"]
[EventRounds "9"]
[EventCountry "GER"]
[SourceTitle "playchess.com"]
[Source "ChessBase"]
[SourceQuality "1"]
[TimeControl "40/4500+30:900+30"]

1. e4 {[%emt 0:00:00]} e6 {[%emt 0:00:00]} 2. d4 {[%emt 0:00:00]} d5 {[%emt 0:00:00]} 3. Nd2 {[%emt 0:00:00]} Nf6 {[%emt 0:00:00]} 4. e5 {[%emt 0:00:00]} Nfd7 {[%emt 0:00:00]} 5. f4 {[%emt 0:00:00]} c5 {[%emt 0:00:00]} 6. c3 {[%emt 0:00:00]} Nc6 {[%emt 0:00:00]} 7. Ndf3 {[%emt 0:00:00]} Qb6 {[%emt 0:00:00]} 8. g3 {[%emt 0:00:00]} cxd4 {[%emt 0:00:00]} 9. cxd4 {[%emt 0:00:00]} Bb4+ {[%emt 0:00:00]} 10. Kf2 {[%emt 0:00:00]} g5 {[%emt 0:00:00]} 11. Nxg5 {[%emt 0:00:00]} Nxd4 {[%emt 0:00:00]} 12. Kg2 {[%emt 0:04:02]} h6 {[%emt 0:00:00]} 13. N5f3 {[%emt 0:23:40]} Nc6 {[%emt 0:17:41]} 14. a3 {[%emt 0:01:05]} Be7 {[%emt 0:00:44]} 15. b4 {[%emt 0:02:50]} a6 {[%emt 0:10:07]} 16. Ne2 {[%emt 0:02:24]} Qa7 {[%emt 0:04:22]} 17. Ned4 {[%emt 0:02:29]} Nxd4 {[%emt 0:03:33]} 18. Nxd4 {[%emt 0:01:12]} b5 {[%emt 0:02:04]} 19. Be3 {[%emt 0:04:22]} Qb7 {[%emt 0:03:17]} 20. Qg4 {[%emt 0:05:06] normal} 1-0

[Event "GER-ch Youth U12 2019"]
[Site "Willingen"]
[Date "2019.06.10"]
[Round "3.6"]
[White "Tomasjan, Samuel"]
[Black "Bakiev, Diyor"]
[Result "0-1"]
[ECO "B06"]
[WhiteElo "1476"]
[BlackElo "2123"]
[Annotator "NA"]
[PlyCount "36"]
[EventDate "2019.06.07"]
[EventType "swiss"]
[EventRounds "9"]
[EventCountry "GER"]
[SourceTitle "playchess.com"]
[Source "ChessBase"]
[SourceQuality "1"]
[TimeControl "40/4500+30:900+30"]

1. e4 {[%emt 0:00:00]} g6 {[%emt 0:00:00]} 2. d4 {[%emt 0:00:00]} Bg7 {[%emt 0:00:00]} 3. Nf3 {[%emt 0:00:00]} c6 {[%emt 0:00:00]} 4. Be3 {[%emt 0:00:00]} d5 {[%emt 0:00:00]} 5. exd5 {[%emt 0:00:00]} cxd5 {[%emt 0:00:00]} 6. c4 {[%emt 0:00:00]} Nf6 {[%emt 0:00:00]} 7. Nc3 {[%emt 0:00:00]} O-O {[%emt 0:00:00]} 8. Qd2 {[%emt 0:00:00]} Nc6 {[%emt 0:00:00]} 9. cxd5 {[%emt 0:06:01]} Nxd5 {[%emt 0:00:00]} 10. Bh6 {[%emt 0:01:01]} Bf5 {[%emt 0:06:20]} 11. Bxg7 {[%emt 0:02:55]} Kxg7 {[%emt 0:06:14]} 12. a3 {[%emt 0:09:49]} Na5 {[%emt 0:01:57]} 13. Qd1 {[%emt 0:06:14]} Rc8 {[%emt 0:00:30]} 14. Bd3 {[%emt 0:00:30]} Nxc3 {[%emt 0:09:34]} 15. bxc3 {[%emt 0:00:02]} Bg4 {[%emt 0:04:13]} 16. Rc1 {[%emt 0:04:38]} Qd5 {[%emt 0:04:33]} 17. Be2 {[%emt 0:01:22]} Nc4 {[%emt 0:02:11]} 18. Qb3 {[%emt 0:03:04]} e5 {[%emt 0:20:18] normal} 0-1

[Event "GER-ch Youth U12 2019"]
[Site "Willingen"]
[Date "2019.06.10"]
[Round "3.7"]
[White "Freude, Max"]
[Black "Reichmann, Felix"]
[Result "1-0"]
[ECO "B00"]
[WhiteElo "1707"]
[BlackElo "1725"]
[Annotator "NA"]
[PlyCount "23"]
[EventDate "2019.06.07"]
[EventType "swiss"]
[EventRounds "9"]
[EventCountry "GER"]
[SourceTitle "playchess.com"]
[Source "ChessBase"]
[SourceQuality "1"]
[TimeControl "40/4500+30:900+30"]

1. e4 {[%emt 0:00:00]} d6 {[%emt 0:00:00]} 2. d4 {[%emt 0:00:00]} c6 {[%emt 0:00:00]} 3. Nc3 {[%emt 0:00:00]} Nd7 {[%emt 0:00:00]} 4. f4 {[%emt 0:00:00]} h6 {[%emt 0:00:00]} 5. Nf3 {[%emt 0:00:00]} g5 {[%emt 0:00:00]} 6. Be3 {[%emt 0:03:15]} Bg7 {[%emt 0:00:00]} 7. Be2 {[%emt 0:07:25]} Nf8 {[%emt 0:00:00]} 8. O-O {[%emt 0:07:50]} gxf4 {[%emt 0:00:00]} 9. Bxf4 {[%emt 0:00:31]} Ne6 {[%emt 0:00:00]} 10. Be3 {[%emt 0:03:16]} Nf6 {[%emt 0:00:00]} 11. Nh4 {[%emt 0:05:16]} Qb6 {[%emt 0:00:00]} 12. Qd2 {[%emt 0:05:37] normal} 1-0

[Event "GER-ch Youth U12 2019"]
[Site "Willingen"]
[Date "2019.06.10"]
[Round "3.8"]
[White "Schreidl, Michael"]
[Black "Metzdorf, Matteo"]
[Result "1/2-1/2"]
[ECO "B42"]
[WhiteElo "1586"]
[BlackElo "1859"]
[Annotator "NA"]
[PlyCount "36"]
[EventDate "2019.06.07"]
[EventType "swiss"]
[EventRounds "9"]
[EventCountry "GER"]
[SourceTitle "playchess.com"]
[Source "ChessBase"]
[SourceQuality "1"]
[TimeControl "40/4500+30:900+30"]

1. e4 {[%emt 0:00:00]} c5 {[%emt 0:00:00]} 2. Nf3 {[%emt 0:00:00]} e6 {[%emt 0:00:00]} 3. d4 {[%emt 0:00:00]} cxd4 {[%emt 0:00:00]} 4. Nxd4 {[%emt 0:00:00]} a6 {[%emt 0:00:00]} 5. Bd3 {[%emt 0:00:00]} Qc7 {[%emt 0:00:00]} 6. Be3 {[%emt 0:00:00]} Nc6 {[%emt 0:00:00]} 7. Nc3 {[%emt 0:00:00]} Nf6 {[%emt 0:00:00]} 8. O-O {[%emt 0:00:00]} h5 {[%emt 0:00:00]} 9. h3 {[%emt 0:00:00]} b5 {[%emt 0:00:00]} 10. Qe2 {[%emt 0:00:00]} Bb7 {[%emt 0:01:42]} 11. f4 {[%emt 0:00:00]} b4 {[%emt 0:13:22]} 12. Na4 {[%emt 0:00:11]} Nxd4 {[%emt 0:01:52]} 13. Bxd4 {[%emt 0:00:31]} Qc6 {[%emt 0:00:12]} 14. Nb6 {[%emt 0:01:27]} Bc5 {[%emt 0:02:28]} 15. Bxc5 {[%emt 0:01:50]} Qxc5+ {[%emt 0:02:33]} 16. Qf2 {[%emt 0:00:07]} Qxf2+ {[%emt 0:05:07]} 17. Rxf2 {[%emt 0:00:06]} Rb8 {[%emt 0:01:07]} 18. Nc4 {[%emt 0:01:30]} Ke7 {[%emt 0:03:23] normal} 1/2-1/2

[Event "GER-ch Youth U12 2019"]
[Site "Willingen"]
[Date "2019.06.10"]
[Round "3.9"]
[White "Schwartz, Oliver"]
[Black "Deuer, Marius"]
[Result "1/2-1/2"]
[ECO "B38"]
[WhiteElo "1616"]
[BlackElo "1961"]
[Annotator "NA"]
[PlyCount "55"]
[EventDate "2019.06.07"]
[EventType "swiss"]
[EventRounds "9"]
[EventCountry "GER"]
[SourceTitle "playchess.com"]
[Source "ChessBase"]
[SourceQuality "1"]
[TimeControl "40/4500+30:900+30"]

1. e4 {[%emt 0:00:00]} c5 {[%emt 0:00:00]} 2. Nf3 {[%emt 0:00:00]} Nc6 {[%emt 0:00:00]} 3. d4 {[%emt 0:00:00]} cxd4 {[%emt 0:00:00]} 4. Nxd4 {[%emt 0:00:00]} g6 {[%emt 0:00:00]} 5. c4 {[%emt 0:00:00]} Bg7 {[%emt 0:00:00]} 6. Be3 {[%emt 0:00:00]} Nf6 {[%emt 0:00:00]} 7. Nc3 {[%emt 0:00:00]} d6 {[%emt 0:00:00]} 8. Be2 {[%emt 0:00:00]} O-O {[%emt 0:00:00]} 9. O-O {[%emt 0:00:00]} Nxd4 {[%emt 0:00:00]} 10. Bxd4 {[%emt 0:00:00]} Bd7 {[%emt 0:00:00]} 11. Qd2 {[%emt 0:00:00]} Bc6 {[%emt 0:00:00]} 12. f3 {[%emt 0:00:00]} a5 {[%emt 0:00:00]} 13. b3 {[%emt 0:00:00]} Nd7 {[%emt 0:00:00]} 14. Be3 {[%emt 0:00:00]} Nc5 {[%emt 0:00:00]} 15. Rab1 {[%emt 0:00:00]} Qb6 {[%emt 0:00:00]} 16. Rfc1 {[%emt 0:00:00]} Qb4 {[%emt 0:01:47]} 17. Rc2 {[%emt 0:00:00]} Rfc8 {[%emt 0:07:22]} 18. Qc1 {[%emt 0:00:00]} Qb6 {[%emt 0:00:19]} 19. a3 {[%emt 0:00:00]} Qd8 {[%emt 0:01:34]} 20. Nd5 {[%emt 0:00:00]} e6 {[%emt 0:09:15]} 21. Nc3 {[%emt 0:04:30]} a4 {[%emt 0:07:06]} 22. b4 {[%emt 0:01:32]} Nb3 {[%emt 0:02:46]} 23. Qd1 {[%emt 0:00:40]} e5 {[%emt 0:02:58]} 24. Qd3 {[%emt 0:10:11]} Nd4 {[%emt 0:05:49]} 25. Rd2 {[%emt 0:02:44]} b6 {[%emt 0:08:39]} 26. Bf1 {[%emt 0:02:44]} Bd7 {[%emt 0:06:31]} 27. Ne2 {[%emt 0:05:36]} Be6 {[%emt 0:02:28]} 28. Bxd4 {[%emt 0:08:28] normal} 1/2-1/2

[Event "GER-ch Youth U12 2019"]
[Site "Willingen"]
[Date "2019.06.10"]
[Round "3.10"]
[White "Fuhrmann, Bahne"]
[Black "Hagner, Bennet"]
[Result "0-1"]
[ECO "D45"]
[WhiteElo "1659"]
[BlackElo "1900"]
[Annotator "NA"]
[PlyCount "53"]
[EventDate "2019.06.07"]
[EventType "swiss"]
[EventRounds "9"]
[EventCountry "GER"]
[SourceTitle "playchess.com"]
[Source "ChessBase"]
[SourceQuality "1"]
[TimeControl "40/4500+30:900+30"]

1. Nf3 {[%emt 0:00:00]} d5 {[%emt 0:00:00]} 2. d4 {[%emt 0:00:00]} Nf6 {[%emt 0:00:00]} 3. c4 {[%emt 0:00:00]} c6 {[%emt 0:00:00]} 4. e3 {[%emt 0:00:00]} e6 {[%emt 0:00:00]} 5. Nc3 {[%emt 0:00:00]} Bd6 {[%emt 0:00:00]} 6. b3 {[%emt 0:00:00]} O-O {[%emt 0:00:00]} 7. Bb2 {[%emt 0:00:00]} Nbd7 {[%emt 0:00:00]} 8. Ne2 {[%emt 0:00:00]} Ne4 {[%emt 0:00:00]} 9. c5 {[%emt 0:00:00]} Bc7 {[%emt 0:00:00]} 10. Nc3 {[%emt 0:00:00]} Ba5 {[%emt 0:02:30]} 11. Qc2 {[%emt 0:00:00]} e5 {[%emt 0:01:11]} 12. O-O-O {[%emt 0:00:57]} Nxc3 {[%emt 0:05:54]} 13. Bxc3 {[%emt 0:00:06]} Bxc3 {[%emt 0:03:13]} 14. Qxc3 {[%emt 0:00:06]} e4 {[%emt 0:01:42]} 15. Nd2 {[%emt 0:03:34]} Qc7 {[%emt 0:07:19]} 16. f3 {[%emt 0:01:47]} f5 {[%emt 0:02:27]} 17. fxe4 {[%emt 0:03:01]} fxe4 {[%emt 0:00:19]} 18. Be2 {[%emt 0:00:25]} Rf2 {[%emt 0:01:11]} 19. Bf1 {[%emt 0:11:53]} a5 {[%emt 0:02:54]} 20. a3 {[%emt 0:04:49]} b6 {[%emt 0:00:33]} 21. Bc4 {[%emt 0:09:54]} dxc4 {[%emt 0:07:13]} 22. Nxe4 {[%emt 0:02:53]} Rxg2 {[%emt 0:04:08]} 23. Qxc4+ {[%emt 0:02:35]} Kh8 {[%emt 0:00:14]} 24. Nd6 {[%emt 0:02:43]} h6 {[%emt 0:03:20]} 25. Nf7+ {[%emt 0:01:23]} Kh7 {[%emt 0:00:07]} 26. Qd3+ {[%emt 0:00:19]} g6 {[%emt 0:01:54]} 27. Rdg1 {[%emt 0:03:48] normal} 0-1

[Event "GER-ch Youth U12 2019"]
[Site "Willingen"]
[Date "2019.06.10"]
[Round "3.11"]
[White "Hecht, Jonas Christian"]
[Black "Bolz, Jannis"]
[Result "1/2-1/2"]
[ECO "C45"]
[WhiteElo "1726"]
[BlackElo "1618"]
[Annotator "NA"]
[PlyCount "78"]
[EventDate "2019.06.07"]
[EventType "swiss"]
[EventRounds "9"]
[EventCountry "GER"]
[SourceTitle "playchess.com"]
[Source "ChessBase"]
[SourceQuality "1"]
[TimeControl "40/4500+30:900+30"]

1. e4 {[%emt 0:00:00]} e5 {[%emt 0:00:00]} 2. Nf3 {[%emt 0:00:00]} Nc6 {[%emt 0:00:00]} 3. d4 {[%emt 0:00:00]} exd4 {[%emt 0:00:00]} 4. Nxd4 {[%emt 0:00:00]} Bc5 {[%emt 0:00:00]} 5. Nxc6 {[%emt 0:00:00]} Qf6 {[%emt 0:00:00]} 6. Qf3 {[%emt 0:00:00]} bxc6 {[%emt 0:00:00]} 7. Bc4 {[%emt 0:00:00]} d6 {[%emt 0:00:00]} 8. Nc3 {[%emt 0:00:00]} Qxf3 {[%emt 0:00:00]} 9. gxf3 {[%emt 0:00:00]} Ne7 {[%emt 0:00:00]} 10. Ke2 {[%emt 0:00:00]} O-O {[%emt 0:00:00]} 11. Rg1 {[%emt 0:00:01]} Bb7 {[%emt 0:00:00]} 12. Bg5 {[%emt 0:01:03]} Ng6 {[%emt 0:00:00]} 13. Rg2 {[%emt 0:01:01]} Kh8 {[%emt 0:00:00]} 14. Rag1 {[%emt 0:04:38]} Ne5 {[%emt 0:00:00]} 15. Bb3 {[%emt 0:01:30]} Ba6+ {[%emt 0:00:00]} 16. Kd1 {[%emt 0:02:40]} Nxf3 {[%emt 0:00:00]} 17. Rh1 {[%emt 0:05:37]} Nxg5 {[%emt 0:01:42]} 18. Rxg5 {[%emt 0:00:51]} Bxf2 {[%emt 0:00:11]} 19. Ba4 {[%emt 0:01:08]} Bb7 {[%emt 0:03:49]} 20. Rf1 {[%emt 0:01:19]} Bh4 {[%emt 0:00:19]} 21. Rgf5 {[%emt 0:00:57]} Bf6 {[%emt 0:00:16]} 22. Ne2 {[%emt 0:02:58]} Rab8 {[%emt 0:04:01]} 23. c3 {[%emt 0:01:41]} Ba6 {[%emt 0:03:20]} 24. Bb3 {[%emt 0:01:07]} Bxe2+ 25. Kxe2 {[%emt 0:00:20]} Rbe8 {[%emt 0:03:45]} 26. Ra5 {[%emt 0:07:13]} Rxe4+ {[%emt 0:03:38]} 27. Kd3 {[%emt 0:00:31]} Re7 {[%emt 0:03:31]} 28. Rxa7 {[%emt 0:00:34]} Be5 {[%emt 0:03:33]} 29. Rxf7 {[%emt 0:03:16]} Rexf7 {[%emt 0:01:01]} 30. Bxf7 {[%emt 0:00:03]} d5 {[%emt 0:01:10]} 31. a4 {[%emt 0:03:48]} g5 {[%emt 0:00:11]} 32. a5 {[%emt 0:02:27]} Rxf7 {[%emt 0:03:42]} 33. Ra8+ {[%emt 0:00:06]} Kg7 {[%emt 0:00:12]} 34. a6 {[%emt 0:00:06]} Rf1 {[%emt 0:00:08]} 35. Re8 {[%emt 0:00:32]} Ra1 {[%emt 0:10:44]} 36. Rxe5 {[%emt 0:00:11]} Kf6 {[%emt 0:01:11]} 37. Re8 {[%emt 0:00:53]} Rxa6 {[%emt 0:00:08]} 38. Rh8 {[%emt 0:01:39]} Kg7 {[%emt 0:01:13]} 39. Rc8 {[%emt 0:00:22]} Ra7 {[%emt 0:00:09] normal} 1/2-1/2

[Event "GER-ch Youth U12 2019"]
[Site "Willingen"]
[Date "2019.06.10"]
[Round "3.12"]
[White "Gerdes, Jannes"]
[Black "Kempe, Caius Emilian"]
[Result "1/2-1/2"]
[ECO "B76"]
[WhiteElo "1517"]
[BlackElo "1766"]
[Annotator "NA"]
[PlyCount "23"]
[EventDate "2019.06.07"]
[EventType "swiss"]
[EventRounds "9"]
[EventCountry "GER"]
[SourceTitle "playchess.com"]
[Source "ChessBase"]
[SourceQuality "1"]
[TimeControl "40/4500+30:900+30"]

1. e4 {[%emt 0:00:00]} c5 {[%emt 0:00:00]} 2. Nf3 {[%emt 0:00:00]} d6 {[%emt 0:00:00]} 3. d4 {[%emt 0:00:00]} cxd4 {[%emt 0:00:00]} 4. Nxd4 {[%emt 0:00:00]} Nf6 {[%emt 0:00:00]} 5. Nc3 {[%emt 0:00:00]} g6 {[%emt 0:00:00]} 6. Be3 {[%emt 0:00:00]} Bg7 {[%emt 0:00:00]} 7. f3 {[%emt 0:00:00]} O-O {[%emt 0:00:00]} 8. Qd2 {[%emt 0:00:00]} Nc6 9. O-O-O {[%emt 0:00:00]} Nxd4 {[%emt 0:00:00]} 10. Bxd4 {[%emt 0:00:00]} Be6 {[%emt 0:00:00]} 11. Kb1 {[%emt 0:00:00]} Qa5 {[%emt 0:00:00]} 12. Nd5 {[%emt 0:00:00] normal} 1/2-1/2

[Event "GER-ch Youth U12 2019"]
[Site "Willingen"]
[Date "2019.06.10"]
[Round "3.13"]
[White "Breitkopf-Lazar, Patrick-Robert"]
[Black "Fink, Moritz"]
[Result "1-0"]
[ECO "C50"]
[WhiteElo "1659"]
[BlackElo "1392"]
[Annotator "NA"]
[PlyCount "27"]
[EventDate "2019.06.07"]
[EventType "swiss"]
[EventRounds "9"]
[EventCountry "GER"]
[SourceTitle "playchess.com"]
[Source "ChessBase"]
[SourceQuality "1"]
[TimeControl "40/4500+30:900+30"]

1. e4 {[%emt 0:00:00]} e5 {[%emt 0:00:00]} 2. Nf3 {[%emt 0:00:00]} Nc6 {[%emt 0:00:00]} 3. Bc4 {[%emt 0:00:00]} Bc5 {[%emt 0:00:00]} 4. O-O {[%emt 0:00:00]} Nf6 {[%emt 0:00:00]} 5. d4 {[%emt 0:00:00]} Bxd4 {[%emt 0:00:00]} 6. Nxd4 {[%emt 0:00:00]} Nxd4 {[%emt 0:00:00]} 7. f4 {[%emt 0:00:00]} d6 {[%emt 0:00:00]} 8. fxe5 {[%emt 0:00:00]} dxe5 {[%emt 0:00:00]} 9. Bg5 {[%emt 0:00:00]} Qd6 {[%emt 0:00:38]} 10. Na3 {[%emt 0:00:00]} Qb6 {[%emt 0:04:10]} 11. Kh1 {[%emt 0:03:58]} Qxb2 {[%emt 0:01:29]} 12. Rxf6 {[%emt 0:10:00]} gxf6 {[%emt 0:03:48]} 13. Bxf6 {[%emt 0:01:11]} Bg4 {[%emt 0:00:29]} 14. Qf1 {[%emt 0:14:59] normal} 1-0

[Event "GER-ch Youth U12 2019"]
[Site "Willingen"]
[Date "2019.06.10"]
[Round "3.14"]
[White "Weyerer, Noah"]
[Black "Rempe, Jonas"]
[Result "1/2-1/2"]
[ECO "A45"]
[WhiteElo "1320"]
[BlackElo "1781"]
[Annotator "NA"]
[PlyCount "90"]
[EventDate "2019.06.07"]
[EventType "swiss"]
[EventRounds "9"]
[EventCountry "GER"]
[SourceTitle "playchess.com"]
[Source "ChessBase"]
[SourceQuality "1"]
[TimeControl "40/4500+30:900+30"]

1. d4 {[%emt 0:00:00]} Nf6 {[%emt 0:00:00]} 2. Bf4 {[%emt 0:00:00]} d5 {[%emt 0:00:00]} 3. e3 {[%emt 0:00:00]} c5 {[%emt 0:00:00]} 4. c3 {[%emt 0:00:00]} Nc6 {[%emt 0:00:00]} 5. Nd2 {[%emt 0:00:00]} g6 {[%emt 0:00:00]} 6. Bd3 {[%emt 0:00:00]} Bg7 {[%emt 0:00:00]} 7. Ngf3 {[%emt 0:00:00]} O-O {[%emt 0:00:00]} 8. O-O {[%emt 0:00:00]} Nd7 {[%emt 0:00:00]} 9. Bb5 {[%emt 0:00:00]} Qb6 {[%emt 0:00:00]} 10. Bxc6 {[%emt 0:00:00]} bxc6 {[%emt 0:00:00]} 11. Qb3 {[%emt 0:00:00]} Ba6 {[%emt 0:02:35]} 12. Rfe1 {[%emt 0:00:34]} f5 13. Rad1 {[%emt 0:07:28]} Rae8 {[%emt 0:20:58]} 14. h3 {[%emt 0:06:57]} h6 {[%emt 0:05:23]} 15. Bh2 {[%emt 0:02:46]} Kh7 {[%emt 0:01:11]} 16. Qc2 {[%emt 0:06:36]} c4 {[%emt 0:05:40]} 17. b3 {[%emt 0:05:34]} cxb3 {[%emt 0:04:36]} 18. axb3 {[%emt 0:00:33]} c5 {[%emt 0:00:25]} 19. Ra1 {[%emt 0:06:21]} Bb7 {[%emt 0:04:46]} 20. Reb1 {[%emt 0:03:31]} Rc8 {[%emt 0:00:07]} 21. Qb2 {[%emt 0:02:23]} cxd4 {[%emt 0:00:57]} 22. exd4 {[%emt 0:02:22]} g5 {[%emt 0:01:29]} 23. b4 {[%emt 0:05:35]} g4 {[%emt 0:01:32]} 24. hxg4 {[%emt 0:01:57]} fxg4 {[%emt 0:00:07]} 25. Nh4 {[%emt 0:01:31]} Qf6 {[%emt 0:00:52]} 26. Bg3 {[%emt 0:01:54]} e5 {[%emt 0:03:56]} 27. Rxa7 {[%emt 0:04:45]} Qb6 {[%emt 0:00:15]} 28. Qc2+ {[%emt 0:09:24]} Kg8 {[%emt 0:00:23]} 29. Rxb7 Qxb7 {[%emt 0:00:03]} 30. Qg6 {[%emt 0:04:07]} Qc6 {[%emt 0:01:51]} 31. Qxg4 {[%emt 0:01:04]} Nf6 {[%emt 0:05:12]} 32. Qg6 {[%emt 0:01:09]} Ne4 {[%emt 0:01:44]} 33. Qxc6 Rxc6 {[%emt 0:00:16]} 34. Nxe4 {[%emt 0:01:18]} dxe4 {[%emt 0:00:21]} 35. Bxe5 {[%emt 0:02:16]} Bxe5 {[%emt 0:00:13]} 36. dxe5 {[%emt 0:00:04]} Rxc3 {[%emt 0:00:11]} 37. b5 Rb8 {[%emt 0:00:36]} 38. Nf5 {[%emt 0:02:17]} Kf7 {[%emt 0:02:37]} 39. Nxh6+ Ke6 {[%emt 0:00:07]} 40. Ng4 {[%emt 0:02:31]} Kf5 {[%emt 0:00:36]} 41. Nf6 {[%emt 0:16:26]} Rb7 {[%emt 0:16:11]} 42. Nd5 {[%emt 0:05:03]} Rc5 {[%emt 0:00:35]} 43. Ne3+ {[%emt 0:00:36]} Kxe5 {[%emt 0:00:32]} 44. b6 Rc6 {[%emt 0:01:10]} 45. Kh2 {[%emt 0:02:58]} Kf4 {[%emt 0:01:25] normal} 1/2-1/2

[Event "GER-ch Youth U12 2019"]
[Site "Willingen"]
[Date "2019.06.10"]
[Round "3.15"]
[White "Brunner, Alexander"]
[Black "von Mettenheim, Johannes"]
[Result "0-1"]
[ECO "A45"]
[WhiteElo "1991"]
[BlackElo "1757"]
[Annotator "NA"]
[PlyCount "34"]
[EventDate "2019.06.07"]
[EventType "swiss"]
[EventRounds "9"]
[EventCountry "GER"]
[SourceTitle "playchess.com"]
[Source "ChessBase"]
[SourceQuality "1"]
[TimeControl "40/4500+30:900+30"]

1. d4 {[%emt 0:00:00]} Nf6 {[%emt 0:00:00]} 2. Nc3 {[%emt 0:00:00]} d5 {[%emt 0:00:00]} 3. Bf4 {[%emt 0:00:00]} c5 {[%emt 0:00:00]} 4. e3 {[%emt 0:00:00]} cxd4 {[%emt 0:00:00]} 5. Nb5 {[%emt 0:00:00]} Na6 {[%emt 0:00:00]} 6. exd4 {[%emt 0:00:00]} Bf5 {[%emt 0:00:00]} 7. c3 {[%emt 0:00:00]} e6 {[%emt 0:05:31]} 8. Qa4 {[%emt 0:07:43]} Nd7 {[%emt 0:00:33]} 9. Nf3 {[%emt 0:12:36]} Be7 {[%emt 0:02:06]} 10. Nd6+ {[%emt 0:02:47]} Bxd6 {[%emt 0:00:02]} 11. Bxd6 {[%emt 0:00:01]} Qb6 {[%emt 0:01:29]} 12. Ba3 {[%emt 0:03:56]} f6 {[%emt 0:07:09]} 13. Bb5 Nab8 {[%emt 0:01:28]} 14. Bc5 {[%emt 0:17:34]} Qc7 {[%emt 0:01:05]} 15. O-O {[%emt 0:16:01]} Nc6 {[%emt 0:03:14]} 16. Ba3 {[%emt 0:01:52]} Kf7 {[%emt 0:02:47]} 17. Rac1 {[%emt 0:07:42]} a6 {[%emt 0:00:49] normal} 0-1